bitfinex-derivatives/quotes_BNBF0:USTF0_20250810
["timestamp","ask_amount","ask_price","bid_price","bid_amount"]
[1754858891615,0.78928246,805.59,804.66,1.6737405]
[1754858891816,0.78928246,805.58,804.66,1.6737405]
[1754858892012,0.78928246,805.57,804.66,1.6737405]
[1754858892215,0.78930758,805.56,804.67,1.6737405]
[1754858892513,0.78945254,805.55,804.62,1.6737405]
[1754858892812,0.78945254,805.54,804.54,1.6737405]
[1754858893116,0.78945254,805.53,804.51,1.6737405]
[1754858893312,0.78945254,805.52,804.54,1.6737405]
[1754858893517,0.78945254,805.51,804.55,1.6737405]
[1754858893813,0.2162955,805.6,804.55,1.6737405]
[1754858894011,0.78959491,805.59,804.55,1.6737405]
[1754858894316,0.78959491,805.58,804.55,1.6737405]
[1754858894517,0.78959491,805.57,804.56,1.6737405]
[1754858894713,0.78959491,805.56,804.56,1.6737405]
[1754858894913,0.78959491,805.56,803.9,2.8023031]
[1754858894914,0.78959491,805.55,804.57,1.6737405]
[1754858895117,0.78959491,805.54,804.57,1.6737405]
[1754858895318,0.78959491,805.53,804.58,1.6737405]
[1754858895617,0.2162955,805.6,804.58,1.6737405]
[1754858895618,0.78959491,805.52,804.58,1.6737405]
[1754858895914,0.2162955,805.6,804.58,1.6737405]
[1754858896117,0.78975274,805.59,804.58,1.6737405]
[1754858896312,0.78975274,805.58,804.59,1.6737405]
[1754858896517,0.78975274,805.57,804.59,1.6737405]
[1754858896717,0.78975274,805.56,804.59,1.6737405]
[1754858897014,0.78975274,805.55,804.59,1.6737405]
[1754858897218,0.78975274,805.54,804.59,1.6737405]
[1754858897418,0.78975274,805.53,804.59,1.6737405]
[1754858897721,0.78975274,805.52,804.59,1.6737405]
[1754858897919,0.2162955,805.6,804.59,1.6737405]
[1754858898115,0.78985103,805.59,804.59,1.6737405]
[1754858898313,0.78985103,805.58,804.59,1.6737405]
[1754858898516,0.78985103,805.57,804.6,1.6737405]
[1754858898714,0.78985103,805.56,804.6,1.6737405]
[1754858898912,0.78985103,805.55,804.6,1.6737405]
[1754858899117,0.78985103,805.54,804.59,1.6737405]
[1754858899420,0.78985103,805.53,804.61,1.6737405]
[1754858899618,0.78985103,805.52,804.61,1.6737405]
[1754858899814,0.2162955,805.6,804.61,1.6737405]
[1754858900018,0.78996715,805.59,804.61,1.6737405]
[1754858900314,0.78996715,805.58,804.62,1.6737405]
[1754858900514,0.78996715,805.57,804.62,1.6737405]
[1754858900714,0.78996715,805.56,804.62,1.6737405]
[1754858900917,0.78996715,805.55,804.62,1.6737405]
[1754858901116,0.78996715,805.54,804.62,1.6737405]
[1754858901317,0.78996715,805.53,804.62,1.6737405]
[1754858901517,0.78996715,805.52,804.63,1.6737405]
[1754858901817,0.2162955,805.6,804.63,1.6737405]
[1754858902118,0.78967658,805.59,804.67,1.6737405]
[1754858902314,0.78967658,805.58,804.68,1.6737405]
[1754858902617,0.78967658,805.57,804.68,1.6737405]
[1754858902817,0.78967658,805.56,804.68,1.6737405]
[1754858903014,0.2162955,805.6,804.68,1.6737405]
[1754858903216,0.7897636,805.59,804.68,1.6737405]
[1754858903416,0.7897636,805.58,804.71,1.6737405]
[1754858903618,0.2162955,805.6,804.72,1.6737405]
[1754858903818,0.78996448,805.59,804.72,1.6737405]
[1754858904115,0.78996448,805.58,804.72,1.6737405]
[1754858904315,0.78996448,805.58,804.1,2.8023031]
[1754858904316,0.2162955,805.6,804.74,1.6737405]
[1754858904517,0.79018935,805.59,804.75,1.6737405]
[1754858904719,0.2162955,805.6,804.75,1.6737405]
[1754858904917,0.79018931,805.59,804.75,1.6737405]
[1754858905222,0.2162955,805.6,804.76,1.6737405]
[1754858905523,0.79020782,805.59,804.77,1.6737405]
[1754858905722,0.79020782,805.58,804.77,1.6737405]
[1754858906019,0.2162955,805.6,804.77,1.6737405]
[1754858906217,0.79044115,805.59,804.77,1.6737405]
[1754858906417,0.79044115,805.58,804.78,1.6737405]
[1754858906622,0.79044115,805.57,804.78,1.6737405]
[1754858906821,0.79044115,805.56,804.78,1.6737405]
[1754858907122,0.2162955,805.6,804.79,1.6737405]
[1754858907418,0.79074554,805.59,804.79,1.6737405]
[1754858907616,0.79074554,805.58,804.79,1.6737405]
[1754858907817,0.79074554,805.57,804.79,1.6737405]
[1754858908020,0.79074554,805.56,804.79,1.6737405]
[1754858908222,0.79074554,805.55,804.8,1.6737405]
[1754858908420,0.2162955,805.6,804.8,1.6737405]
[1754858908618,0.79105744,805.59,804.8,1.6737405]
[1754858908821,0.79105744,805.58,804.8,1.6737405]
[1754858909021,0.79105744,805.57,804.81,1.6737405]
[1754858909320,0.79105744,805.56,804.81,1.6737405]
[1754858909518,0.79105744,805.55,804.82,1.6737405]
[1754858909716,0.79105744,805.54,804.83,1.6737405]
[1754858910018,0.2162955,805.6,804.83,1.6737405]
[1754858910221,0.79126477,805.59,804.83,1.6737405]
[1754858910418,0.79126477,805.58,804.84,1.6737405]
[1754858910724,0.79126477,805.57,804.84,1.6737405]
[1754858910923,0.79126477,805.56,804.84,1.6737405]
[1754858911122,0.79126477,805.55,804.84,1.6737405]
[1754858911423,0.2162955,805.6,803.93,3.9232243]
[1754858911424,0.79126477,805.54,804.74,1.6737405]
[1754858911622,0.2162955,805.6,804.74,1.6737405]
[1754858911623,0.79126477,805.53,804.74,1.6737405]
[1754858911923,0.79126477,805.52,804.74,1.6737405]
[1754858912121,0.79126477,805.51,804.74,1.6737405]
[1754858912320,0.79126477,805.5,804.75,1.6737405]
[1754858912624,0.79126477,805.49,804.75,1.6737405]
[1754858912825,0.79126477,805.48,804.81,1.6737405]
[1754858913021,0.79126477,805.47,804.81,1.6737405]
[1754858913225,0.79126477,805.46,804.81,1.6737405]
[1754858913423,0.79126477,805.45,804.81,1.6737405]
[1754858913730,0.79126477,805.44,804.81,1.6737405]
[1754858914027,0.79126477,805.43,804.81,1.6737405]
[1754858914327,0.79126477,805.42,804.81,1.6737405]
[1754858914522,0.79126477,805.41,804.81,1.6737405]
[1754858914726,0.79126477,805.4,804.81,1.6737405]
[1754858914921,0.79126477,805.39,804.81,1.6737405]
[1754858915123,0.79126477,805.38,804.81,1.6737405]
[1754858915328,0.79126477,805.37,804.81,1.6737405]
[1754858915530,0.79126477,805.36,804.82,1.6737405]
[1754858915729,0.79126477,805.35,804.82,1.6737405]
[1754858915929,0.83352556,805.58,804.82,1.6737405]
[1754858917931,0.83352556,805.58,804.76,1.6737405]
[1754858918726,0.83352556,805.58,804.77,1.6737405]
[1754858920526,1.62590034,805.57,804.77,1.6737405]
[1754858920725,0.79237478,805.56,804.77,1.6737405]
[1754858920927,0.79237478,805.55,804.77,1.6737405]
[1754858921129,0.79237478,805.54,804.77,1.6737405]
[1754858921330,1.62590034,805.53,804.74,1.6737405]
[1754858921530,0.79237478,805.52,804.86,1.6737405]
[1754858921729,0.79237478,805.51,804.86,1.6737405]
[1754858921926,0.79237478,805.5,804.86,1.6737405]
[1754858922130,0.79237478,805.49,804.86,1.6737405]
[1754858922430,0.79237478,805.48,804.9,1.6737405]
[1754858922631,0.79237478,805.47,804.9,1.6737405]
[1754858922826,0.79237478,805.46,804.9,1.6737405]
[1754858923030,0.79237478,805.45,804.9,1.6737405]
[1754858923230,0.2162955,805.6,804.9,1.6737405]
[1754858923528,0.77086076,805.59,804.91,1.6737405]
[1754858923729,0.77086076,805.58,804.91,1.6737405]
[1754858923929,0.77086076,805.57,804.91,1.6737405]
[1754858924128,0.77086076,805.56,804.91,1.6737405]
[1754858924329,0.77086076,805.55,804.91,1.6737405]
[1754858924530,0.77086076,805.54,804.91,1.6737405]
[1754858924730,0.77086076,805.53,804.91,1.6737405]
[1754858924932,0.77086076,805.52,804.89,1.6737405]
[1754858925129,0.77086076,805.51,804.89,1.6737405]
[1754858925330,0.77086076,805.5,804.88,1.6737405]
[1754858925530,0.77086076,805.49,804.88,1.6737405]
[1754858925730,0.77086076,805.48,804.88,1.6737405]
[1754858925929,0.77086076,805.47,804.88,1.6737405]
[1754858926129,0.77086076,805.46,804.88,1.6737405]
[1754858926329,0.77086076,805.45,804.88,1.6737405]
[1754858926534,0.77086076,805.44,804.88,1.6737405]
[1754858926732,0.77086076,805.43,804.88,1.6737405]
[1754858926933,0.77086076,805.42,804.69,1.6737405]
[1754858927241,0.77086076,805.41,804.69,1.6737405]
[1754858927437,0.77086076,805.4,804.69,1.6737405]
[1754858927736,0.77086076,805.39,804.69,1.6737405]
[1754858927933,0.2162955,805.6,804.7,1.6737405]
[1754858928137,0.77078902,805.59,804.7,1.6737405]
[1754858928338,0.77078902,805.58,804.7,1.6737405]
[1754858928537,0.77078902,805.57,804.7,1.6737405]
[1754858928733,0.77078902,805.56,804.69,1.6737405]
[1754858928937,0.77078902,805.55,804.62,1.6737405]
[1754858929233,0.77078902,805.54,804.61,1.6737405]
[1754858929437,0.77078902,805.53,804.62,1.6737405]
[1754858929636,0.77078902,805.52,804.62,1.6737405]
[1754858929837,0.77078902,805.51,804.61,1.6737405]
[1754858930038,0.77078902,805.5,804.62,1.6737405]
[1754858930234,0.77078902,805.49,804.59,1.6737405]
[1754858930439,0.77078902,805.48,804.6,1.6737405]
[1754858930636,0.77078902,805.47,804.6,1.6737405]
[1754858930836,0.77078902,805.46,804.59,1.6737405]
[1754858931140,0.77078902,805.45,804.54,1.6737405]
[1754858931335,0.77078902,805.44,804.53,1.6737405]
[1754858931638,0.77078902,805.43,804.52,1.6737405]
[1754858931839,0.77078902,805.42,804.52,1.6737405]
[1754858932039,0.77078902,805.41,804.52,1.6737405]
[1754858932240,0.77078902,805.41,803.74,2.8023031]
[1754858932241,0.77078902,805.4,804.51,1.6737405]
[1754858932441,0.77078902,805.39,804.51,1.6737405]
[1754858932642,0.77078902,805.38,804.52,1.6737405]
[1754858932842,0.77078902,805.37,804.49,1.6737405]
[1754858933042,0.77078902,805.36,804.49,1.6737405]
[1754858933242,0.77078902,805.35,804.47,1.6737405]
[1754858933538,0.77078902,805.34,804.39,1.6737405]
[1754858933738,0.77078902,805.33,804.39,1.6737405]
[1754858933938,0.77078902,805.32,804.39,1.6737405]
[1754858934140,0.83352556,805.5,804.39,1.6737405]
[1754858934141,0.77078902,805.31,804.39,1.6737405]
[1754858934341,0.77078902,805.3,804.37,1.6737405]
[1754858934538,0.77078902,805.29,804.38,1.6737405]
[1754858934741,0.77078902,805.28,804.38,1.6737405]
[1754858934942,0.77078902,805.27,804.38,1.6737405]
[1754858935141,0.77078902,805.26,804.38,1.6737405]
[1754858935344,0.77078902,805.25,804.36,1.6737405]
[1754858935544,0.77078902,805.24,804.36,1.6737405]
[1754858935741,0.77078902,805.23,804.36,1.6737405]
[1754858935942,0.77078902,805.22,804.36,1.6737405]
[1754858936145,0.77078902,805.21,804.36,1.6737405]
[1754858936347,0.83352556,805.54,804.35,1.6737405]
[1754858936547,0.83352556,805.54,804.36,1.6737405]
[1754858936748,0.76914394,805.59,804.24,1.6737405]
[1754858936948,0.76914394,805.58,804.24,1.6737405]
[1754858937244,0.76914394,805.57,804.23,1.6737405]
[1754858937449,0.76914394,805.56,804.3,1.6737405]
[1754858937645,0.76914394,805.55,804.3,1.6737405]
[1754858937850,0.76914394,805.54,804.3,1.6737405]
[1754858938150,0.76914394,805.53,804.3,1.6737405]
[1754858938451,0.76914394,805.52,804.3,1.6737405]
[1754858938750,0.76914394,805.51,804.3,1.6737405]
[1754858939046,0.76914394,805.5,804.3,1.6737405]
[1754858939251,0.76914394,805.49,804.29,1.6737405]
[1754858939548,0.76914394,805.48,804.29,1.6737405]
[1754858939746,0.76914394,805.47,804.29,1.6737405]
[1754858939950,0.76914394,805.46,804.29,1.6737405]
[1754858940150,0.76914394,805.45,804.29,1.6737405]
[1754858940449,0.76914394,805.44,804.29,1.6737405]
[1754858940650,0.76914394,805.43,804.29,1.6737405]
[1754858940950,0.76914394,805.42,804.29,1.6737405]
[1754858941147,0.76914394,805.41,804.29,1.6737405]
[1754858941450,0.76914394,805.4,804.36,1.6737405]
[1754858941651,0.76914394,805.39,804.36,1.6737405]
[1754858941850,0.76914394,805.38,804.36,1.6737405]
[1754858942050,0.76914394,805.37,804.36,1.6737405]
[1754858942350,0.76914394,805.36,804.36,1.6737405]
[1754858942647,0.76914394,805.35,804.36,1.6737405]
[1754858942848,0.2162955,805.6,804.52,1.6737405]
[1754858943047,0.76861835,805.59,804.52,1.6737405]
[1754858943249,0.76861835,805.58,804.52,1.6737405]
[1754858943550,0.76861835,805.57,804.52,1.6737405]
[1754858943748,0.76861835,805.56,804.52,1.6737405]
[1754858944052,0.76861835,805.55,803.89,1.6737405]
[1754858944252,0.76861835,805.54,803.71,1.6737405]
[1754858944453,0.76861835,805.53,803.68,1.6737405]
[1754858944752,0.76861835,805.52,803.68,1.6737405]
[1754858944951,0.76861835,805.51,803.68,1.6737405]
[1754858945252,0.76861835,805.5,803.66,1.6737405]
[1754858945449,0.76861835,805.49,803.66,1.6737405]
[1754858945647,0.76861835,805.48,803.66,1.6737405]
[1754858945848,0.76861835,805.47,803.66,1.6737405]
[1754858946051,0.76861835,805.46,803.66,1.6737405]
[1754858946352,0.76861835,805.45,803.64,1.6737405]
[1754858946547,0.76861835,805.44,803.64,1.6737405]
[1754858946753,0.76861835,805.43,803.64,1.6737405]
[1754858947052,0.76861835,805.42,803.64,1.6737405]
[1754858947347,0.76861835,805.41,803.62,1.6737405]
[1754858947549,0.76861835,805.4,803.63,1.6737405]
[1754858947748,0.76861835,805.39,803.63,1.6737405]
[1754858947949,0.76861835,805.38,803.63,1.6737405]
[1754858948249,0.76861835,805.37,803.61,1.6737405]
[1754858948452,0.76861835,805.36,803.61,1.6737405]
[1754858948654,0.76861835,805.35,803.62,1.6737405]
[1754858948949,0.76861835,805.34,803.62,1.6737405]
[1754858949252,0.76861835,805.33,803.63,1.6737405]
[1754858949449,0.76861835,805.32,803.62,1.6737405]
[1754858949653,0.76861835,805.31,803.62,1.6737405]
[1754858949851,0.76861835,805.3,803.62,1.6737405]
[1754858950054,0.76861835,805.29,803.62,1.6737405]
[1754858950350,0.76861835,805.28,803.61,1.6737405]
[1754858950549,0.76861835,805.27,803.61,1.6737405]
[1754858950754,0.76861835,805.26,803.61,1.6737405]
[1754858950948,0.76861835,805.25,803.61,1.6737405]
[1754858951253,0.76861835,805.24,803.59,1.6737405]
[1754858951450,0.76861835,805.23,803.63,1.6737405]
[1754858951654,0.76861835,805.22,803.63,1.6737405]
[1754858951848,0.76861835,805.21,803.63,1.6737405]
[1754858952050,0.76861835,805.2,803.63,1.6737405]
[1754858952252,0.2162955,805.6,803.62,1.6737405]
[1754858952452,0.76674599,805.59,803.62,1.6737405]
[1754858952652,0.76674599,805.58,803.62,1.6737405]
[1754858952857,0.76674599,805.57,803.62,1.6737405]
[1754858953054,0.76674599,805.56,803.62,1.6737405]
[1754858953253,0.76674599,805.56,803.18,0.21646435]
[1754858953254,0.76674599,805.55,803.61,1.6737405]
[1754858953553,0.76674599,805.54,803.6,1.6737405]
[1754858953856,0.76674599,805.53,803.6,1.6737405]
[1754858954057,0.76674599,805.52,803.96,1.6737405]
[1754858954352,0.76674599,805.51,803.95,1.6737405]
[1754858954557,0.76674599,805.5,803.95,1.6737405]
[1754858954856,0.76674599,805.49,803.95,1.6737405]
[1754858955052,0.76674599,805.48,803.95,1.6737405]
[1754858955256,0.76674599,805.47,803.94,1.6737405]
[1754858955451,0.76674599,805.46,803.94,1.6737405]
[1754858955654,0.76674599,805.45,803.94,1.6737405]
[1754858955853,0.76674599,805.44,803.94,1.6737405]
[1754858956055,0.76674599,805.43,803.94,1.6737405]
[1754858956357,0.76674599,805.42,803.93,1.6737405]
[1754858956555,0.76674599,805.41,803.93,1.6737405]
[1754858956858,0.76674599,805.4,803.93,1.6737405]
[1754858957155,0.76674599,805.39,803.93,1.6737405]
[1754858957354,0.76674599,805.38,803.93,1.6737405]
[1754858957554,0.76674599,805.37,803.94,1.6737405]
[1754858957761,0.76674599,805.36,803.94,1.6737405]
[1754858957957,0.76674599,805.35,803.94,1.6737405]
[1754858958160,0.76674599,805.34,803.94,1.6737405]
[1754858958359,0.76674599,805.33,803.96,1.6737405]
[1754858958553,0.76674599,805.32,803.96,1.6737405]
[1754858958856,0.76674599,805.31,804.05,1.6737405]
[1754858959057,0.76674599,805.3,804.06,1.6737405]
[1754858959257,0.76674599,805.29,804.06,1.6737405]
[1754858959458,0.76674599,805.28,804.06,1.6737405]
[1754858959760,0.76674599,805.27,804.18,1.6737405]
[1754858960056,0.76674599,805.26,804.18,1.6737405]
[1754858960256,0.76674599,805.25,804.17,1.6737405]
[1754858960557,0.76674599,805.24,804.17,1.6737405]
[1754858960760,0.76674599,805.23,804.17,1.6737405]
[1754858960958,0.83352556,805.5,804.17,1.6737405]
[1754858961460,0.83352556,805.35,804.12,1.6737405]
[1754858963063,0.76588957,805.34,804.02,1.6737405]
[1754858963362,0.76588957,805.33,804.02,1.6737405]
[1754858963662,0.76588957,805.32,804.05,1.6737405]
[1754858963862,0.76588957,805.31,804.05,1.6737405]
[1754858964056,0.76588957,805.3,804.05,1.6737405]
[1754858964261,0.76588957,805.29,804.05,1.6737405]
[1754858964460,0.76588957,805.28,804.02,1.6737405]
[1754858964662,0.76588957,805.27,804.05,1.6737405]
[1754858964862,0.76588957,805.26,804.05,1.6737405]
[1754858965064,0.76588957,805.25,804.05,1.6737405]
[1754858965261,0.76588957,805.24,804.06,1.6737405]
[1754858965460,0.76588957,805.23,804.06,1.6737405]
[1754858965662,0.76588957,805.22,804.06,1.6737405]
[1754858965860,0.76588957,805.21,804.06,1.6737405]
[1754858966065,0.76588957,805.2,804.06,1.6737405]
[1754858966265,0.76588957,805.19,804.07,1.6737405]
[1754858966565,0.83352556,805.51,804.07,1.6737405]
[1754858968265,0.83352556,805.51,804.08,1.6737405]
[1754858969160,0.83352556,805.51,803.37,2.8023031]
[1754858969161,0.83352556,805.5,804.09,1.6737405]
[1754858970963,0.83352556,805.47,804.16,1.6737405]
[1754858971364,0.83352556,805.47,804.17,1.6737405]
[1754858971568,0.76611002,805.46,804.25,1.6737405]
[1754858971768,0.83352556,805.54,804.26,1.6737405]
[1754858971769,0.76611002,805.45,804.26,1.6737405]
[1754858971966,0.76611002,805.44,804.26,1.6737405]
[1754858972164,0.83352556,805.54,804.26,1.6737405]
[1754858972165,0.76611002,805.43,804.26,1.6737405]
[1754858972364,0.76611002,805.42,804.27,1.6737405]
[1754858972663,0.76611002,805.41,804.27,1.6737405]
[1754858972867,0.76611002,805.4,804.27,1.6737405]
[1754858973165,0.76611002,805.39,804.27,1.6737405]
[1754858973364,0.76611002,805.38,804.28,1.6737405]
[1754858973664,0.76611002,805.37,804.28,1.6737405]
[1754858973870,0.76611002,805.36,804.34,1.6737405]
[1754858974069,0.76611002,805.35,804.34,1.6737405]
[1754858974268,0.76611002,805.34,804.35,1.6737405]
[1754858974463,0.76611002,805.33,804.36,1.6737405]
[1754858974662,0.76611002,805.32,804.36,1.6737405]
[1754858974867,0.76611002,805.31,804.35,1.6737405]
[1754858975064,0.76611002,805.3,804.35,1.6737405]
[1754858975267,0.76611002,805.29,804.36,1.6737405]
[1754858975467,0.76611002,805.28,804.36,1.6737405]
[1754858975666,0.76611002,805.27,804.36,1.6737405]
[1754858975968,0.83352556,805.51,804.36,1.6737405]
[1754858976365,0.83352556,805.51,804.38,1.6737405]
[1754858976869,0.83352556,805.51,804.37,1.6737405]
[1754858977469,0.83352556,805.51,804.38,1.6737405]
[1754858978367,0.83352556,805.51,804.4,1.6737405]
[1754858978868,0.83352556,805.5,804.4,1.6737405]
[1754858979167,0.83352556,805.5,804.42,1.6737405]
[1754858980270,0.83352556,805.5,804.44,1.6737405]
[1754858980570,0.7669952,805.49,804.47,1.6737405]
[1754858980770,0.7669952,805.48,804.47,1.6737405]
[1754858980967,0.7669952,805.47,804.47,1.6737405]
[1754858981166,0.7669952,805.46,804.47,1.6737405]
[1754858981468,0.7669952,805.45,804.46,1.6737405]
[1754858981671,0.7669952,805.44,804.46,1.6737405]
[1754858981871,0.7669952,805.43,804.46,1.6737405]
[1754858982070,0.7669952,805.42,804.46,1.6737405]
[1754858982269,0.7669952,805.41,804.48,1.6737405]
[1754858982468,0.7669952,805.4,804.48,1.6737405]
[1754858982672,0.7669952,805.39,804.48,1.6737405]
[1754858982968,0.7669952,805.38,804.48,1.6737405]
[1754858983170,0.7669952,805.37,804.48,1.6737405]
[1754858983369,0.7669952,805.36,804.49,1.6737405]
[1754858983567,0.7669952,805.35,804.49,1.6737405]
[1754858983870,0.7669952,805.34,804.49,1.6737405]
[1754858984069,0.7669952,805.33,804.49,1.6737405]
[1754858984267,0.7669952,805.32,804.5,1.6737405]
[1754858984468,0.7669952,805.31,804.5,1.6737405]
[1754858984671,0.7669952,805.3,804.51,1.6737405]
[1754858984874,0.7669952,805.29,804.51,1.6737405]
[1754858985170,0.7669952,805.28,804.52,1.6737405]
[1754858985369,0.7669952,805.27,804.52,1.6737405]
[1754858985574,0.7669952,805.26,804.52,1.6737405]
[1754858985868,0.7669952,805.25,804.52,1.6737405]
[1754858986072,0.7669952,805.24,804.52,1.6737405]
[1754858986272,0.7669952,805.23,804.53,1.6737405]
[1754858986573,0.7669952,805.22,804.53,1.6737405]
[1754858986773,0.7669952,805.21,804.53,1.6737405]
[1754858987069,0.83352556,805.44,804.53,1.6737405]
[1754858987268,1.60239885,805.43,804.54,1.6737405]
[1754858987575,0.76887329,805.42,804.54,1.6737405]
[1754858987769,0.76887329,805.41,804.54,1.6737405]
[1754858987972,0.76887329,805.4,804.54,1.6737405]
[1754858988171,0.76887329,805.39,804.54,1.6737405]
[1754858988370,0.76887329,805.39,804.02,2.8023031]
[1754858988371,0.76887329,805.38,804.56,1.6737405]
[1754858988571,0.76887329,805.37,804.56,1.6737405]
[1754858988775,0.76887329,805.36,804.56,1.6737405]
[1754858988973,0.76887329,805.35,804.56,1.6737405]
[1754858989172,0.76887329,805.34,804.56,1.6737405]
[1754858989370,0.76887329,805.33,804.56,1.6737405]
[1754858989573,0.76887329,805.32,804.56,1.6737405]
[1754858989772,0.76887329,805.31,804.56,1.6737405]
[1754858990076,0.76887329,805.3,804.56,1.6737405]
[1754858990372,0.76887329,805.29,804.57,1.6737405]
[1754858990576,0.76887329,805.28,804.57,1.6737405]
[1754858990780,0.76887329,805.27,804.57,1.6737405]
[1754858990973,0.76887329,805.26,804.57,1.6737405]
[1754858991178,0.76887329,805.25,804.58,1.6737405]
[1754858991375,0.76887329,805.24,804.58,1.6737405]
[1754858991580,0.76887329,805.23,804.55,1.6737405]
[1754858991776,0.76887329,805.22,804.55,1.6737405]
[1754858991976,0.76887329,805.21,804.55,1.6737405]
[1754858992174,0.76887329,805.2,804.56,1.6737405]
[1754858992374,0.76887329,805.19,804.37,1.6737405]
[1754858992675,0.76887329,805.18,804.24,1.6737405]
[1754858992874,0.2162955,805.6,803.48,2.8023031]
[1754858992875,0.76887329,805.17,804.19,1.6737405]
[1754858993074,0.76887329,805.16,804.19,1.6737405]
[1754858993274,0.76887329,805.15,804.2,1.6737405]
[1754858993474,0.76887329,805.14,804.2,1.6737405]
[1754858993671,0.76887329,805.13,804.2,1.6737405]
[1754858993974,1.1120284,805.56,803.38,2.8023031]
[1754858993975,0.76887329,805.12,804.23,1.6737405]
[1754858994178,0.76887329,805.11,804.23,1.6737405]
[1754858994473,0.76887329,805.1,804.23,1.6737405]
[1754858994677,0.83352556,805.34,804.23,1.6737405]
[1754858994678,0.76887329,805.09,804.23,1.6737405]
[1754858994877,0.76887329,805.08,804.23,1.6737405]
[1754858995073,0.76887329,805.07,804.23,1.6737405]
[1754858995377,0.76887329,805.06,804.22,1.6737405]
[1754858995576,0.76887329,805.05,804.22,1.6737405]
[1754858995774,0.76887329,805.04,804.22,1.6737405]
[1754858995977,0.83352556,805.35,804.22,1.6737405]
[1754858995978,0.76887329,805.03,804.22,1.6737405]
[1754858996180,0.76887329,805.02,804.22,1.6737405]
[1754858996377,0.76887329,805.01,804.22,1.6737405]
[1754858996578,0.76887329,805.0,804.22,1.6737405]
[1754858996876,0.83352556,805.34,804.22,1.6737405]
[1754858997278,0.83352556,805.34,804.21,1.6737405]
[1754858998281,0.83352556,805.34,804.22,1.6737405]
[1754859000983,0.83352556,805.34,803.45,2.8023031]
[1754859000984,1.60289529,805.33,804.23,1.6737405]
[1754859001184,0.83352556,805.31,804.21,1.6737405]
[1754859001381,1.60289529,805.31,804.21,1.6737405]
[1754859001586,0.83352556,805.21,804.11,1.6737405]
[1754859001780,0.83352556,805.15,804.09,1.6737405]
[1754859001985,0.83352556,805.11,804.06,1.6737405]
[1754859002584,0.83352556,805.08,804.11,1.6737405]
[1754859002783,0.76936973,805.07,804.11,1.6737405]
[1754859002982,0.76936973,805.06,804.11,1.6737405]
[1754859003181,0.76936973,805.05,804.11,1.6737405]
[1754859003386,0.76936973,805.04,804.11,1.6737405]
[1754859003586,0.76936973,805.03,804.12,1.6737405]
[1754859003788,0.76936973,805.02,804.11,1.6737405]
[1754859003987,0.76936973,805.01,804.12,1.6737405]
[1754859004188,0.76936973,805.0,804.12,1.6737405]
[1754859004387,0.76936973,804.99,804.11,1.6737405]
[1754859004589,0.76936973,804.98,804.11,1.6737405]
[1754859004784,0.76936973,804.97,804.11,1.6737405]
[1754859004987,0.76936973,804.96,804.11,1.6737405]
[1754859005185,0.76936973,804.95,804.11,1.6737405]
[1754859005390,0.76936973,804.94,804.11,1.6737405]
[1754859005592,0.76936973,804.93,804.1,1.6737405]
[1754859005792,0.76936973,804.92,804.1,1.6737405]
[1754859005990,0.76936973,804.91,804.1,1.6737405]
[1754859006288,0.76936973,804.9,804.1,1.6737405]
[1754859006493,0.83352556,805.08,803.48,2.8023031]
[1754859006494,0.76936973,804.89,804.09,1.6737405]
[1754859006791,0.76936973,804.88,804.09,1.6737405]
[1754859006988,0.76936973,804.87,804.09,1.6737405]
[1754859007291,0.76936973,804.86,804.09,1.6737405]
[1754859007491,0.76936973,804.85,804.09,1.6737405]
[1754859007692,0.76936973,804.84,804.07,1.6737405]
[1754859007893,0.76936973,804.83,804.07,1.6737405]
[1754859008090,0.76936973,804.82,804.07,1.6737405]
[1754859008291,0.83352556,805.06,804.07,1.6737405]
[1754859008292,0.76936973,804.81,804.07,1.6737405]
[1754859008487,0.76936973,804.8,804.07,1.6737405]
[1754859008694,0.83352556,805.07,804.07,1.6737405]
[1754859009292,0.83352556,805.07,804.06,1.6737405]
[1754859009495,0.76869574,805.06,804.06,1.6737405]
[1754859009694,0.76869574,805.05,804.06,1.6737405]
[1754859009894,0.76869574,805.04,804.06,1.6737405]
[1754859010093,0.83352556,805.08,804.06,1.6737405]
[1754859010094,0.76869574,805.03,804.06,1.6737405]
[1754859010390,0.76869574,805.02,804.06,1.6737405]
[1754859010590,0.76869574,805.01,804.04,1.6737405]
[1754859010795,0.76869574,805.0,804.04,1.6737405]
[1754859011004,0.76869574,804.99,804.04,1.6737405]
[1754859011198,0.76869574,804.98,804.04,1.6737405]
[1754859011401,0.76869574,804.97,804.03,1.6737405]
[1754859011606,0.76869574,804.96,804.22,1.6737405]
[1754859011901,1.1120284,805.35,804.22,1.6737405]
[1754859012104,1.1120284,805.35,803.65,2.8023031]
[1754859012105,0.83645332,805.2,804.23,1.6737405]
[1754859012306,0.76836168,805.19,804.23,1.6737405]
[1754859012506,0.76836168,805.18,804.23,1.6737405]
[1754859012706,0.76836168,805.17,804.23,1.6737405]
[1754859012906,0.76836168,805.16,804.22,1.6737405]
[1754859013102,0.76836168,805.15,804.22,1.6737405]
[1754859013309,0.83645332,805.12,804.11,1.6737405]
[1754859013508,0.76836168,805.11,804.1,1.6737405]
[1754859013808,0.76836168,805.1,804.1,1.6737405]
[1754859014005,0.76836168,805.09,804.1,1.6737405]
[1754859014210,0.76836168,805.08,804.1,1.6737405]